[Event "12th Philadelphia Open"]
[Site "Philadelphia"]
[Date "2018.03.31"]
[Round "7.4"]
[White "Wong, Jianwen"]
[Black "Azarov, Sergei"]
[Result "0-1"]
[ECO "C49"]
[WhiteElo "2153"]
[BlackElo "2570"]
[PlyCount "64"]
[EventDate "2018.03.??"]
[EventType "swiss"]
[EventRounds "9"]
[EventCountry "USA"]
[TimeControl "5400+30"]
[WhiteClock "0:00:31"]
[BlackClock "0:33:29"]

1. e4 {[%emt 0:00:00]} e5 {[%emt 0:00:00]} 2. Nf3 {[%emt 0:00:00]} Nc6 {
[%emt 0:00:00]} 3. Nc3 {[%emt 0:00:00]} Nf6 {[%emt 0:00:00]} 4. Bb5 {[%emt 0:
00:00]} Bb4 {[%emt 0:00:00]} 5. O-O {[%emt 0:00:00]} O-O {[%emt 0:00:00]} 6. d4
{[%emt 0:00:00]} a6 {[%emt 0:00:06]} 7. Bxc6 {[%emt 0:00:00]} dxc6 {[%emt 0:02:
53]} 8. Nxe5 {[%emt 0:00:00]} Bxc3 {[%emt 0:00:57]} 9. bxc3 {[%emt 0:00:00]}
Nxe4 {[%emt 0:00:39]} 10. Qf3 {[%emt 0:00:00]} Nd6 {[%emt 0:02:36]} 11. Ba3 {
[%emt 0:00:00]} Be6 {[%emt 0:03:30]} 12. Rfe1 {[%emt 0:01:34]} Re8 {[%emt 0:00:
58]} 13. Bxd6 {[%emt 0:04:41]} cxd6 {[%emt 0:06:19]} 14. Nd3 {[%emt 0:00:30]}
Qg5 {[%emt 0:00:44]} 15. Qe3 {[%emt 0:17:16]} h6 {[%emt 0:07:09]} 16. f3 {
[%emt 0:05:08]} Qa5 {[%emt 0:04:32]} 17. Nf4 {[%emt 0:08:50]} Bd7 {[%emt 0:12:
57]} 18. Qd2 {[%emt 0:06:29]} Rxe1+ {[%emt 0:00:50]} 19. Qxe1 {[%emt 0:05:11]}
Re8 {[%emt 0:01:08]} 20. Qd2 {[%emt 0:00:31]} c5 {[%emt 0:02:09]} 21. d5 {
[%emt 0:06:56]} Qb6 {[%emt 0:03:41]} 22. Re1 {[%emt 0:28:45]} Qb2 {[%emt 0:04:
12]} 23. Rxe8+ {[%emt 0:06:51]} Bxe8 {[%emt 0:01:47]} 24. Nh5 {[%emt 0:02:24]}
Qxa2 {[%emt 0:02:45]} 25. h4 {[%emt 0:00:57]} Qa1+ {[%emt 0:06:13]} 26. Kh2 {
[%emt 0:00:32]} Qa4 {[%emt 0:00:32]} 27. Qe1 {[%emt 0:01:11]} f6 {[%emt 0:02:
41]} 28. Nxf6+ {[%emt 0:04:37]} gxf6 {[%emt 0:00:44]} 29. Qe6+ {[%emt 0:01:26]}
Kg7 {[%emt 0:01:16]} 30. Qxd6 {[%emt 0:00:40]} Qxh4+ {[%emt 0:00:40]} 31. Kg1 {
[%emt 0:00:30]} Qe1+ {[%emt 0:00:30]} 32. Kh2 {[%emt 0:00:30]} Qe5+ {[%emt 0:
00:33]} 0-1

[Event "12th Philadelphia Open"]
[Site "Philadelphia"]
[Date "2018.04.01"]
[Round "8"]
[White "Balakrishnan, Praveen"]
[Black "Feng, Maggie"]
[Result "1-0"]
[ECO "D20"]
[WhiteElo "2405"]
[BlackElo "2254"]
[PlyCount "65"]
[EventDate "2018.03.??"]
[EventType "swiss"]
[EventRounds "9"]
[EventCountry "USA"]
[TimeControl "5400+30"]

1. d4 d5 2. c4 dxc4 3. e4 Nf6 4. e5 Nd5 5. Bxc4 Nb6 6. Bb3 Nc6 7. Ne2 Bf5 8.
Nbc3 e6 9. Be3 Be7 10. O-O Qd7 11. Rc1 O-O-O 12. Na4 Kb8 13. Nc5 Bxc5 14. Rxc5
f6 15. a4 Qe7 16. Qc1 Nd7 17. Rc3 Nb6 18. Bf4 Nd5 19. Bxd5 Rxd5 20. Rb3 Ka8 21.
Nc3 Rxd4 22. Nb5 Rd7 23. Rc3 Be4 24. Qe3 Qb4 25. Rxc6 Qxa4 26. Nxc7+ Kb8 27.
Rcc1 g5 28. Bg3 f5 29. Nxe6 f4 30. Nc5 fxe3 31. Nxa4 Rd4 32. e6+ Ka8 33. Nb6+
1-0

[Event "12th Philadelphia Open"]
[Site "Philadelphia"]
[Date "2018.04.01"]
[Round "8"]
[White "Der Manuelian, Haik"]
[Black "Mujumdar, Sameer"]
[Result "1/2-1/2"]
[ECO "B66"]
[WhiteElo "2279"]
[BlackElo "2092"]
[PlyCount "86"]
[EventDate "2018.03.??"]
[EventType "swiss"]
[EventRounds "9"]
[EventCountry "USA"]
[TimeControl "5400+30"]

1. e4 c5 2. Nf3 d6 3. d4 cxd4 4. Nxd4 Nf6 5. Nc3 Nc6 6. Bg5 e6 7. Qd2 a6 8.
O-O-O Be7 9. f4 Qc7 10. Kb1 Bd7 11. Be2 Rd8 12. Nf3 Bc8 13. Bd3 Nb4 14. Qe2 h6
15. Bh4 b5 16. e5 dxe5 17. fxe5 Nfd5 18. Nxd5 Nxd5 19. Bxe7 Qxe7 20. Be4 Bb7
21. Rd4 O-O 22. Qd2 Nb6 23. Bxb7 Rxd4 24. Qxd4 Qxb7 25. Rd1 Rc8 26. Rd3 Nd5 27.
Nd2 Qc6 28. c3 Ne7 29. g4 Qh1+ 30. Kc2 Nc6 31. Qf4 a5 32. a3 Rd8 33. Rxd8+ Nxd8
34. a4 Qd5 35. axb5 Qxb5 36. Nc4 Qd5 37. Nd6 Qg2+ 38. Kb1 Qh1+ 39. Ka2 Qd5+ 40.
Ka3 Qc5+ 41. Ka4 Qd5 42. Ka3 Qc5+ 43. Ka4 Qd5 1/2-1/2

[Event "12th Philadelphia Open"]
[Site "Philadelphia"]
[Date "2018.04.01"]
[Round "8"]
[White "Goletiani, Rusudan"]
[Black "Tanenbaum, Zachary"]
[Result "1-0"]
[ECO "A22"]
[WhiteElo "2306"]
[BlackElo "2128"]
[PlyCount "75"]
[EventDate "2018.03.??"]
[EventType "swiss"]
[EventRounds "9"]
[EventCountry "USA"]
[TimeControl "5400+30"]

1. c4 e5 2. Nc3 Nf6 3. d3 Nc6 4. g3 Bb4 5. Bg2 O-O 6. Bg5 h6 7. Bxf6 Qxf6 8.
Rc1 d6 9. Nf3 Bf5 10. Nd2 Bxc3 11. bxc3 Qe6 12. Rb1 Rab8 13. O-O Bh3 14. Bd5
Qd7 15. Re1 Be6 16. Qa4 Nd8 17. Qxa7 Nc6 18. Qa4 Ra8 19. Qc2 Bxd5 20. cxd5 Ne7
21. Rxb7 Nxd5 22. Reb1 Qc6 23. R7b3 f5 24. c4 Nf6 25. Nf3 f4 26. R1b2 fxg3 27.
hxg3 Ng4 28. Qb1 Qc5 29. Qe1 c6 30. Rb7 d5 31. cxd5 cxd5 32. d4 exd4 33. Qb4
Rac8 34. Qxc5 Rxc5 35. Ra7 Rc6 36. Rbb7 Rg6 37. Nh4 Rg5 38. f4 1-0

[Event "12th Philadelphia Open"]
[Site "Philadelphia"]
[Date "2018.04.01"]
[Round "8"]
[White "Hua, Eugene"]
[Black "Otchiyev, Arslan"]
[Result "1/2-1/2"]
[ECO "C45"]
[WhiteElo "2314"]
[BlackElo "2369"]
[PlyCount "80"]
[EventDate "2018.03.??"]
[EventType "swiss"]
[EventRounds "9"]
[EventCountry "USA"]
[TimeControl "5400+30"]

1. e4 e5 2. Nf3 Nc6 3. d4 exd4 4. Nxd4 Nf6 5. Nxc6 bxc6 6. e5 Qe7 7. Qe2 Nd5 8.
c4 Nb6 9. Nd2 Bb7 10. b3 g6 11. a4 a5 12. Ba3 c5 13. Ne4 Bxe4 14. Qxe4 f6 15.
f4 fxe5 16. Qxe5 d6 17. Qe2 Bg7 18. O-O-O Nc8 19. g3 Rb8 20. Rd3 Qxe2 21. Bxe2
Ne7 22. Bf3 O-O 23. Be4 Rbe8 24. Kc2 Nf5 25. Bxf5 gxf5 26. Bc1 Re2+ 27. Bd2 Bd4
28. Kd1 Rfe8 29. Re1 Rxe1+ 30. Bxe1 Ra8 31. Ke2 Kf7 32. Kf3 h5 33. h3 Kf6 34.
Bd2 c6 35. g4 hxg4+ 36. hxg4 fxg4+ 37. Kxg4 Rg8+ 38. Kf3 Ra8 39. Kg4 Rg8+ 40.
Kf3 Ra8 1/2-1/2

[Event "12th Philadelphia Open"]
[Site "Philadelphia"]
[Date "2018.04.01"]
[Round "8"]
[White "Katz, Alexander"]
[Black "Guo, Arthur"]
[Result "1-0"]
[ECO "E11"]
[WhiteElo "2347"]
[BlackElo "2208"]
[PlyCount "173"]
[EventDate "2018.03.??"]
[EventType "swiss"]
[EventRounds "9"]
[EventCountry "USA"]
[TimeControl "5400+30"]

1. Nf3 Nf6 2. c4 e6 3. d4 Bb4+ 4. Bd2 c5 5. Bxb4 cxb4 6. Nbd2 O-O 7. e4 d6 8.
Be2 Nbd7 9. O-O e5 10. a3 bxa3 11. Rxa3 b6 12. Qa1 a5 13. b4 Bb7 14. bxa5 bxa5
15. c5 dxc5 16. d5 Qc7 17. Rb1 Rfb8 18. Rb5 c4 19. Rc3 Nb6 20. Nxc4 Nxe4 21.
Rc1 Nxd5 22. Bf1 Qe7 23. Ncxe5 Rc8 24. Rxa5 Rxa5 25. Rxc8+ Bxc8 26. Qxa5 Be6
27. Bd3 Nef6 28. Ng5 g6 29. Bc4 h6 30. Ngf3 Kg7 31. Qd2 Nc7 32. Bxe6 Qxe6 33.
h3 Ncd5 34. Qd4 Qb6 35. Qc4 Qc7 36. Qd4 Qb6 37. Qa4 Qc7 38. g3 Nc3 39. Qb3 Ncd5
40. Kg2 Qb6 41. Qa4 Qc5 42. h4 Qb4 43. Qa7 Qe7 44. Qa8 Qc5 45. Qb7 Qe7 46. Qc6
Qc7 47. Qa4 Qc1 48. h5 gxh5 49. Nd4 Qg5 50. Ne6+ fxe6 51. Qa7+ Nd7 52. Qxd7+
Qe7 53. Qa4 Qf6 54. Qa7+ Qe7 55. Qd4 Qf6 56. Qa7+ Qe7 57. Qa4 Qf6 58. Nd7 Qb2
59. Nc5 Qf6 60. Qd7+ Ne7 61. Nxe6+ Kf7 62. Nd8+ Kf8 63. Ne6+ Kf7 64. Nf4 Qc6+
65. Qxc6 Nxc6 66. Nxh5 Kg6 67. g4 Ne7 68. Kg3 Nc6 69. Kf4 Ne7 70. Kg3 Nc6 71.
Nf4+ Kg5 72. Ne2 Ne7 73. f4+ Kg6 74. Kh4 Nd5 75. f5+ Kf7 76. Ng3 Kf6 77. Ne4+
Ke5 78. Nd2 Ne7 79. Nf3+ Kf6 80. Nd4 Ke5 81. Kh5 Kxd4 82. f6 Nd5 83. f7 Nf4+
84. Kxh6 Ne6 85. g5 Ke5 86. g6 Kf6 87. f8=Q+ 1-0

[Event "12th Philadelphia Open"]
[Site "Philadelphia"]
[Date "2018.04.01"]
[Round "8"]
[White "Kretchetov, Alexandre"]
[Black "Yanovsky, Vlad"]
[Result "1/2-1/2"]
[ECO "D11"]
[WhiteElo "2244"]
[BlackElo "2112"]
[PlyCount "49"]
[EventDate "2018.03.??"]
[EventType "swiss"]
[EventRounds "9"]
[EventCountry "USA"]
[TimeControl "5400+30"]

1. Nf3 d5 2. d4 c6 3. c4 e6 4. Qc2 Bd6 5. Bg5 Nf6 6. Nbd2 O-O 7. e3 Nbd7 8. Bd3
h6 9. Bh4 e5 10. cxd5 cxd5 11. Bg3 Qe7 12. dxe5 Nxe5 13. Nxe5 Bxe5 14. Bxe5
Qxe5 15. Nf3 Qe7 16. O-O Bg4 17. Nd4 Rac8 18. Qb3 Be6 19. Rfc1 Ng4 20. Be2 Ne5
21. Qa4 a6 22. b3 Qf6 23. Qb4 Nc6 24. Nxc6 Rxc6 25. Qd4 1/2-1/2

[Event "12th Philadelphia Open"]
[Site "Philadelphia"]
[Date "2018.04.01"]
[Round "8"]
[White "Kumar, Naman"]
[Black "Shetty, Atulya"]
[Result "0-1"]
[ECO "D10"]
[WhiteElo "2045"]
[BlackElo "2391"]
[PlyCount "94"]
[EventDate "2018.03.??"]
[EventType "swiss"]
[EventRounds "9"]
[EventCountry "USA"]
[TimeControl "5400+30"]

1. d4 d5 2. c4 c6 3. Nc3 Nf6 4. e3 a6 5. Nf3 g6 6. Bd3 Bg7 7. O-O O-O 8. Qc2
Bg4 9. Ne5 Be6 10. Rd1 Nbd7 11. Nxd7 Bxd7 12. b3 Qc7 13. Ba3 Rfe8 14. Rac1 dxc4
15. Bxc4 Rad8 16. h3 Qa5 17. Bc5 Bc8 18. Na4 Nd7 19. Nb6 Nxc5 20. dxc5 Kf8 21.
Rxd8 Rxd8 22. Rd1 Re8 23. Na4 Qc7 24. b4 Rd8 25. Nb6 Bf6 26. Rxd8+ Qxd8 27.
Nxc8 Qxc8 28. a4 Qc7 29. Qb3 e6 30. Be2 Qe5 31. Kf1 Qa1+ 32. Bd1 Bc3 33. Ke2
Qc1 34. b5 axb5 35. axb5 cxb5 36. Qc2 Qa3 37. Qe4 Qxc5 38. Qxb7 Qc4+ 39. Kf3
Qd3 40. Qa8+ Kg7 41. Be2 Qf5+ 42. Kg3 Qe5+ 43. f4 Qxe3+ 44. Qf3 Qc5 45. Qe4 Qg1
46. Kf3 Bd4 47. Kg3 Qe1+ 0-1

[Event "12th Philadelphia Open"]
[Site "Philadelphia"]
[Date "2018.04.01"]
[Round "8"]
[White "Saravanan, V."]
[Black "Markzon, Gregory"]
[Result "1/2-1/2"]
[ECO "E92"]
[WhiteElo "2326"]
[BlackElo "2169"]
[PlyCount "47"]
[EventDate "2018.03.??"]
[EventType "swiss"]
[EventRounds "9"]
[EventCountry "USA"]
[TimeControl "5400+30"]

1. Nf3 Nf6 2. c4 g6 3. Nc3 Bg7 4. e4 d6 5. d4 O-O 6. Be2 e5 7. Be3 exd4 8. Nxd4
Re8 9. f3 c6 10. Bf2 a6 11. O-O b5 12. a3 Bb7 13. Qd2 bxc4 14. Bxc4 d5 15. exd5
cxd5 16. Ba2 Nbd7 17. Rad1 Ne5 18. Nc2 Nc4 19. Qc1 Qc7 20. Nb4 Rac8 21. Ncxd5
Nxd5 22. Nxd5 Bxd5 23. Rxd5 Bxb2 24. Qxc4 1/2-1/2

[Event "12th Philadelphia Open"]
[Site "Philadelphia"]
[Date "2018.04.01"]
[Round "8"]
[White "Turgut, Tansel"]
[Black "Yanayt, Eugene"]
[Result "0-1"]
[ECO "A48"]
[WhiteElo "2265"]
[BlackElo "2127"]
[PlyCount "136"]
[EventDate "2018.03.??"]
[EventType "swiss"]
[EventRounds "9"]
[EventCountry "USA"]
[TimeControl "5400+30"]

1. d4 Nf6 2. Nf3 g6 3. Bg5 Bg7 4. Nbd2 O-O 5. c3 d6 6. e4 c5 7. dxc5 dxc5 8.
Bc4 Nc6 9. h3 Nd7 10. O-O b6 11. Re1 a6 12. a4 Ra7 13. Qc2 h6 14. Bf4 g5 15.
Bg3 Nde5 16. Nxe5 Nxe5 17. Bxe5 Bxe5 18. Nf3 Bg7 19. e5 e6 20. Rad1 Rd7 21.
Rxd7 Qxd7 22. h4 gxh4 23. Qe4 Bb7 24. Qxh4 Qxa4 25. Nh2 b5 26. b3 Qa5 27. Ng4
bxc4 28. Nxh6+ Bxh6 29. Qxh6 Rd8 30. bxc4 Rd3 31. Rb1 Qc7 32. Qg5+ Kf8 33. Qh6+
Kg8 34. Qg5+ Kf8 35. Qh6+ Ke7 36. Qf6+ Ke8 37. Qh8+ Ke7 38. Qf6+ Ke8 39. Qh8+
Kd7 40. Qh7 Rd2 41. Qxf7+ Kc8 42. Qe8+ Rd8 43. Qxe6+ Kb8 44. f3 Qh7 45. Re1 Qh4
46. Rb1 Qg5 47. Qf6 Qxf6 48. exf6 Rd6 49. Re1 Rxf6 50. Re5 Rc6 51. Kf2 a5 52.
g4 Ba6 53. f4 a4 54. Re1 Bxc4 55. Ra1 Bb3 56. f5 Ra6 57. Ke3 a3 58. Kf4 a2 59.
g5 Kc7 60. Ke5 Kd7 61. f6 Re6+ 62. Kf5 Bc2+ 63. Kg4 Bb1 64. Kh5 Ke8 65. c4 Kf7
66. Kh6 Re2 67. Kh5 Rg2 68. Kh4 Kg6 0-1

[Event "12th Philadelphia Open"]
[Site "Philadelphia"]
[Date "2018.04.01"]
[Round "8"]
[White "Wang, Eigen"]
[Black "Niemann, Hans"]
[Result "1/2-1/2"]
[ECO "C11"]
[WhiteElo "2162"]
[BlackElo "2302"]
[PlyCount "91"]
[EventDate "2018.03.??"]
[EventType "swiss"]
[EventRounds "9"]
[EventCountry "USA"]
[TimeControl "5400+30"]

1. e4 e6 2. d4 d5 3. Nc3 Nf6 4. e5 Nfd7 5. f4 c5 6. Nf3 Nc6 7. Be3 cxd4 8. Nxd4
Bc5 9. Qd2 O-O 10. O-O-O Bxd4 11. Bxd4 a6 12. Qf2 b5 13. Be3 Qa5 14. Bd3 b4 15.
Ne2 Qxa2 16. Qh4 h6 17. g4 Ncxe5 18. fxe5 Nxe5 19. Rhf1 Nxd3+ 20. cxd3 Bd7 21.
g5 hxg5 22. Qxg5 f6 23. Qg4 Rac8+ 24. Kd2 Qxb2+ 25. Ke1 Rf7 26. Rg1 e5 27. Qg6
Rc2 28. Bd2 e4 29. dxe4 Bb5 30. Rg4 Bxe2 31. Kxe2 Qe5 32. Qf5 Qxh2+ 33. Kd3
Rcc7 34. exd5 Qh3+ 35. Ke2 Rfe7+ 36. Kf2 Qh2+ 37. Rg2 Re2+ 38. Kxe2 Qxg2+ 39.
Kd3 Re7 40. Re1 Rxe1 41. Bxe1 b3 42. Qe6+ Kh7 43. Bc3 Qc2+ 44. Kd4 Qd1+ 45. Kc4
Qc2 46. Kd4 1/2-1/2

[Event "12th Philadelphia Open"]
[Site "Philadelphia"]
[Date "2018.04.01"]
[Round "8"]
[White "Yu, Jennifer"]
[Black "Homa, Seth"]
[Result "1/2-1/2"]
[ECO "D35"]
[WhiteElo "2367"]
[BlackElo "2247"]
[PlyCount "64"]
[EventDate "2018.03.??"]
[EventType "swiss"]
[EventRounds "9"]
[EventCountry "USA"]
[TimeControl "5400+30"]

1. d4 d5 2. c4 e6 3. Nc3 Nf6 4. cxd5 exd5 5. Bg5 c6 6. e3 Be7 7. Bd3 Nbd7 8.
Nge2 h6 9. Bh4 Nh5 10. Bxe7 Qxe7 11. Qd2 Nb6 12. f3 Bd7 13. O-O-O O-O-O 14. g4
Nf6 15. Ng3 g6 16. h3 h5 17. g5 Ne8 18. h4 Nd6 19. b3 Kb8 20. Kb1 Rc8 21. e4
Ka8 22. Rhe1 Be6 23. e5 Ne8 24. Nce2 Ng7 25. Rc1 Rc7 26. Qa5 Rhc8 27. Qc5 Qd8
28. Qa3 Nd7 29. Nc3 Nb6 30. Nce2 Nd7 31. Nc3 Nb6 32. Nd1 Nd7 1/2-1/2

[Event "12th Philadelphia Open"]
[Site "Philadelphia"]
[Date "2018.04.01"]
[Round "8"]
[White "Zhou, Liran"]
[Black "Zhou, Aiden"]
[Result "1-0"]
[ECO "C12"]
[WhiteElo "2046"]
[BlackElo "1977"]
[PlyCount "61"]
[EventDate "2018.03.??"]
[EventType "swiss"]
[EventRounds "9"]
[EventCountry "USA"]
[TimeControl "5400+30"]

1. e4 e6 2. d4 d5 3. Nc3 Nf6 4. Bg5 Bb4 5. e5 h6 6. Be3 Ne4 7. Qg4 g6 8. a3
Bxc3+ 9. bxc3 Nxc3 10. Bd3 b6 11. Nh3 Ba6 12. O-O Qd7 13. Qh4 Qe7 14. Bg5 Qf8
15. Bf6 Bxd3 16. cxd3 Rg8 17. Qg4 Nc6 18. Kh1 Nb5 19. Rfc1 Nbxd4 20. Rc3 b5 21.
Rac1 a5 22. Nf4 h5 23. Qh3 g5 24. Rxc6 Nxc6 25. Nxe6 Qxa3 26. Nxc7+ Kf8 27. Rg1
Ne7 28. Nxa8 Qc5 29. Qd7 Nc6 30. Qc8+ Nd8 31. Qxd8# 1-0

[Event "12th Philadelphia Open"]
[Site "Philadelphia"]
[Date "2018.04.01"]
[Round "8.1"]
[White "Pedersen, Christian Kyndel"]
[Black "Popilski, Gil"]
[Result "1/2-1/2"]
[ECO "A40"]
[WhiteElo "2405"]
[BlackElo "2502"]
[PlyCount "115"]
[EventDate "2018.03.??"]
[EventType "swiss"]
[EventRounds "9"]
[EventCountry "USA"]
[TimeControl "5400+30"]
[WhiteClock "0:03:10"]
[BlackClock "0:04:44"]

1. d4 {[%emt 0:00:00]} Nf6 {[%emt 0:00:00]} 2. c4 {[%emt 0:00:00]} e6 {[%emt 0:
00:00]} 3. g3 {[%emt 0:00:00]} d5 {[%emt 0:01:20]} 4. Nf3 {[%emt 0:00:00]} c5 {
[%emt 0:04:04]} 5. Bg2 {[%emt 0:00:00]} Nc6 {[%emt 0:00:30]} 6. O-O {[%emt 0:
00:00]} Be7 {[%emt 0:00:37]} 7. cxd5 {[%emt 0:00:00]} exd5 {[%emt 0:00:54]} 8.
dxc5 {[%emt 0:00:00]} Bxc5 {[%emt 0:00:30]} 9. Qc2 {[%emt 0:00:00]} Bb6 {
[%emt 0:01:30]} 10. Bg5 {[%emt 0:00:00]} h6 {[%emt 0:05:17]} 11. Bxf6 {[%emt 0:
00:00]} Qxf6 {[%emt 0:00:30]} 12. Nc3 {[%emt 0:00:00]} Be6 {[%emt 0:00:51]} 13.
Na4 {[%emt 0:00:00]} O-O {[%emt 0:07:47]} 14. Nxb6 {[%emt 0:00:00]} axb6 {
[%emt 0:00:30]} 15. Rfd1 {[%emt 0:07:03]} d4 {[%emt 0:09:43]} 16. b3 {[%emt 0:
09:05]} Rfd8 {[%emt 0:04:55]} 17. Qb2 {[%emt 0:03:29]} Rd7 {[%emt 0:15:08]} 18.
Ne1 {[%emt 0:11:50]} Bd5 {[%emt 0:17:16]} 19. e4 {[%emt 0:01:34]} Be6 {[%emt 0:
00:30]} 20. Nd3 {[%emt 0:04:09]} Na7 {[%emt 0:04:03]} 21. f4 {[%emt 0:02:25]}
g6 {[%emt 0:00:35]} 22. Ne5 {[%emt 0:03:18]} Rdd8 {[%emt 0:01:10]} 23. Rxd4 {
[%emt 0:03:59]} Nc6 {[%emt 0:00:30]} 24. Nxc6 {[%emt 0:15:18]} bxc6 {[%emt 0:
00:30]} 25. Rxd8+ {[%emt 0:13:20]} Qxd8 {[%emt 0:00:30]} 26. Qc3 {[%emt 0:00:
31]} b5 {[%emt 0:02:58]} 27. h3 {[%emt 0:03:14]} Qb6+ {[%emt 0:00:30]} 28. Kh2
{[%emt 0:00:30]} b4 {[%emt 0:02:10]} 29. Qc2 {[%emt 0:03:34]} Rd8 {[%emt 0:02:
43]} 30. f5 {[%emt 0:01:40]} gxf5 {[%emt 0:00:48]} 31. exf5 {[%emt 0:00:30]}
Bd5 {[%emt 0:00:30]} 32. Re1 {[%emt 0:04:04]} Bxg2 {[%emt 0:00:54]} 33. Kxg2 {
[%emt 0:00:39]} Qd4 {[%emt 0:01:48]} 34. Re2 {[%emt 0:03:59]} c5 {[%emt 0:02:
50]} 35. Kh2 {[%emt 0:00:31]} Qc3 {[%emt 0:00:51]} 36. Qe4 {[%emt 0:02:36]} Rd2
{[%emt 0:02:22]} 37. h4 {[%emt 0:02:55]} Qd4 {[%emt 0:01:46]} 38. Qg2 {[%emt 0:
04:49]} Rxe2 {[%emt 0:01:59]} 39. Qxe2 {[%emt 0:00:30]} Kg7 {[%emt 0:00:59]}
40. Kh3 {[%emt 0:01:55]} Qd5 {[%emt 0:04:36]} 41. g4 {[%emt 0:02:53]} Qd4 {
[%emt 0:00:00]} 42. Kg3 {[%emt 0:00:00]} Kf6 {[%emt 0:00:00]} 43. Kf3 {[%emt 0:
00:00]} h5 {[%emt 0:00:00]} 44. Qa6+ {[%emt 0:00:00]} Ke5 {[%emt 0:00:00]} 45.
Qe2+ {[%emt 0:00:00]} Kf6 {[%emt 0:00:00]} 46. gxh5 {[%emt 0:00:00]} Kxf5 {
[%emt 0:00:00]} 47. Qc2+ {[%emt 0:00:00]} Ke5 {[%emt 0:00:00]} 48. Qc4 {
[%emt 0:00:00]} f5 {[%emt 0:00:00]} 49. h6 {[%emt 0:00:00]} Kf6 {[%emt 0:00:00]
} 50. h7 {[%emt 0:00:00]} Qd1+ {[%emt 0:00:00]} 51. Qe2 {[%emt 0:00:00]} Qd5+ {
[%emt 0:02:47]} 52. Kf2 {[%emt 0:00:00]} Kg7 {[%emt 0:01:42]} 53. Qe7+ {
[%emt 0:00:00]} Kh8 {[%emt 0:00:30]} 54. Kg3 {[%emt 0:00:00]} Qd3+ {[%emt 0:00:
32]} 55. Kf4 {[%emt 0:00:00]} Qd2+ {[%emt 0:00:35]} 56. Kxf5 {[%emt 0:00:00]}
Qxa2 {[%emt 0:00:30]} 57. Qe3 {[%emt 0:05:00]} Qc2+ {[%emt 0:00:46]} 58. Kf4
1/2-1/2

[Event "12th Philadelphia Open"]
[Site "Philadelphia"]
[Date "2018.04.01"]
[Round "8.3"]
[White "Azarov, Sergei"]
[Black "Shabalov, Alexander"]
[Result "0-1"]
[ECO "B06"]
[WhiteElo "2570"]
[BlackElo "2568"]
[PlyCount "86"]
[EventDate "2018.03.??"]
[EventType "swiss"]
[EventRounds "9"]
[EventCountry "USA"]
[TimeControl "5400+30"]
[WhiteClock "0:24:19"]
[BlackClock "0:25:42"]

1. e4 {[%emt 0:00:00]} g6 {[%emt 0:00:00]} 2. d4 {[%emt 0:00:00]} Bg7 {[%emt 0:
00:00]} 3. Nf3 {[%emt 0:00:00]} d6 {[%emt 0:00:00]} 4. Nc3 {[%emt 0:00:00]} a6
{[%emt 0:00:00]} 5. Be2 {[%emt 0:00:00]} b5 {[%emt 0:00:00]} 6. a4 {[%emt 0:00:
00]} b4 {[%emt 0:00:00]} 7. Nd5 {[%emt 0:00:00]} Bb7 {[%emt 0:00:00]} 8. Nxb4 {
[%emt 0:00:00]} Bxe4 {[%emt 0:00:00]} 9. O-O {[%emt 0:00:00]} Nf6 {[%emt 0:00:
00]} 10. a5 {[%emt 0:08:38]} O-O {[%emt 0:00:00]} 11. Re1 {[%emt 0:00:40]} e6 {
[%emt 0:04:48]} 12. c3 {[%emt 0:06:58]} Qc8 {[%emt 0:08:09]} 13. Bf4 {[%emt 0:
06:35]} Rd8 {[%emt 0:10:45]} 14. Nd2 {[%emt 0:12:26]} Bb7 {[%emt 0:02:58]} 15.
Bf3 {[%emt 0:00:41]} Ra7 {[%emt 0:10:45]} 16. Bg5 {[%emt 0:06:07]} c5 {[%emt 0:
09:49]} 17. Nd3 {[%emt 0:03:42]} cxd4 {[%emt 0:05:30]} 18. cxd4 {[%emt 0:07:12]
} h6 {[%emt 0:02:36]} 19. Rc1 {[%emt 0:17:14]} Qd7 {[%emt 0:01:43]} 20. Bh4 {
[%emt 0:01:19]} Qb5 {[%emt 0:07:25]} 21. Nc4 {[%emt 0:04:08]} Bd5 {[%emt 0:03:
58]} 22. b3 {[%emt 0:07:48]} Nc6 {[%emt 0:07:45]} 23. Bxd5 {[%emt 0:06:49]}
exd5 {[%emt 0:08:03]} 24. Na3 {[%emt 0:03:31]} Qb7 {[%emt 0:00:35]} 25. Bxf6 {
[%emt 0:01:18]} Bxf6 {[%emt 0:00:30]} 26. b4 {[%emt 0:00:41]} Nxd4 {[%emt 0:01:
43]} 27. Nc2 {[%emt 0:04:13]} Nb5 {[%emt 0:01:55]} 28. Qf3 {[%emt 0:00:41]} Bg5
{[%emt 0:03:40]} 29. Ra1 {[%emt 0:02:03]} d4 {[%emt 0:01:57]} 30. Na3 {[%emt 0:
01:18]} Nc3 {[%emt 0:02:28]} 31. Nc4 {[%emt 0:01:14]} Qxf3 {[%emt 0:01:53]} 32.
gxf3 {[%emt 0:00:30]} Rc7 {[%emt 0:00:30]} 33. Nb6 {[%emt 0:00:30]} Bd2 {
[%emt 0:00:33]} 34. Rf1 {[%emt 0:00:35]} Ne2+ {[%emt 0:00:52]} 35. Kh1 {
[%emt 0:00:30]} Rc3 {[%emt 0:00:41]} 36. b5 {[%emt 0:00:32]} axb5 {[%emt 0:03:
20]} 37. Nb4 {[%emt 0:00:30]} Rc5 {[%emt 0:01:41]} 38. N4d5 {[%emt 0:00:35]}
Nc3 {[%emt 0:00:39]} 39. Nf6+ {[%emt 0:00:30]} Kg7 {[%emt 0:00:30]} 40. Nfd7 {
[%emt 0:00:30]} Rc7 {[%emt 0:00:46]} 41. a6 {[%emt 0:00:00]} Ra7 {[%emt 0:00:
00]} 42. Ra5 {[%emt 0:00:00]} Bf4 {[%emt 0:00:00]} 43. Ra3 {[%emt 0:00:00]} g5
{[%emt 0:00:00]} 0-1

[Event "12th Philadelphia Open"]
[Site "Philadelphia"]
[Date "2018.04.01"]
[Round "9"]
[White "Feng, Maggie"]
[Black "Marin, Sam"]
[Result "1/2-1/2"]
[ECO "A08"]
[WhiteElo "2254"]
[BlackElo "2080"]
[PlyCount "93"]
[EventDate "2018.03.??"]
[EventType "swiss"]
[EventRounds "9"]
[EventCountry "USA"]
[TimeControl "5400+30"]

1. Nf3 d5 2. g3 c5 3. c4 d4 4. Bg2 Nc6 5. O-O e5 6. d3 Be7 7. e3 Nf6 8. exd4
exd4 9. Bf4 O-O 10. Ne5 Nxe5 11. Bxe5 Bd6 12. Bxf6 Qxf6 13. Nd2 Qd8 14. Bd5 a5
15. Qf3 Ra7 16. Ne4 b6 17. Qh5 g6 18. Qh6 Kh8 19. h4 Bf5 20. Rfe1 Bxe4 21. Rxe4
Re8 22. h5 Rxe4 23. hxg6 fxg6 24. dxe4 Qf6 25. f4 Bf8 26. Qh3 g5 27. Rf1 Rg7
28. e5 Qe7 29. fxg5 Qd8 30. Be4 d3 31. Bxd3 Be7 32. Qf5 Bxg5 33. Kg2 Be7 34.
Rh1 Qg8 35. Rh3 Bg5 36. e6 h6 37. Qe5 Qd8 38. g4 Qd4 39. Qxd4 cxd4 40. Bf5 Rc7
41. b3 Kg7 42. Kf3 Kf6 43. Ke4 Be3 44. Kd3 Rc5 45. Rh2 Re5 46. Rh3 Ke7 47. Rf3
1/2-1/2

[Event "12th Philadelphia Open"]
[Site "Philadelphia"]
[Date "2018.04.01"]
[Round "9"]
[White "Guo, Arthur"]
[Black "Kretchetov, Alexandre"]
[Result "1/2-1/2"]
[ECO "C60"]
[WhiteElo "2208"]
[BlackElo "2244"]
[PlyCount "81"]
[EventDate "2018.03.??"]
[EventType "swiss"]
[EventRounds "9"]
[EventCountry "USA"]
[TimeControl "5400+30"]

1. e4 e5 2. Nf3 Nc6 3. Bb5 g6 4. O-O Bg7 5. c3 a6 6. Ba4 d6 7. d4 Bd7 8. d5
Nce7 9. Bxd7+ Qxd7 10. c4 Nf6 11. Nc3 c5 12. dxc6 Qxc6 13. Bg5 O-O 14. Qd3 h6
15. Bxf6 Bxf6 16. Rfd1 Rfd8 17. a4 Rac8 18. b3 Bg7 19. Nd2 f5 20. Nf1 f4 21.
Nd5 Nxd5 22. Qxd5+ Qxd5 23. Rxd5 Bf6 24. Rad1 Be7 25. Nd2 Rc5 26. Nb1 Rxd5 27.
Rxd5 Kf7 28. Nc3 Ke6 29. Kf1 h5 30. Ke2 g5 31. Rd1 Rf8 32. Nd5 Bd8 33. b4 a5
34. Rb1 axb4 35. Rxb4 Rf7 36. Rb1 g4 37. Rb3 Rg7 38. h3 Rf7 39. Kf1 Rg7 40. Ke2
Rf7 41. Kf1 1/2-1/2

[Event "12th Philadelphia Open"]
[Site "Philadelphia"]
[Date "2018.04.01"]
[Round "9"]
[White "Li, Ben"]
[Black "Homa, Seth"]
[Result "1-0"]
[ECO "E20"]
[WhiteElo "2347"]
[BlackElo "2247"]
[PlyCount "71"]
[EventDate "2018.03.??"]
[EventType "swiss"]
[EventRounds "9"]
[EventCountry "USA"]
[TimeControl "5400+30"]

1. d4 Nf6 2. c4 e6 3. Nf3 d5 4. Nc3 Bb4 5. Bd2 O-O 6. a3 Bxc3 7. Bxc3 Ne4 8.
Qc2 a5 9. e3 Nc6 10. Bd3 f5 11. O-O Rf6 12. b4 Rh6 13. b5 Ne7 14. Ne5 Qe8 15.
Rfc1 Qh5 16. h3 g5 17. f3 Nf6 18. Be2 Bd7 19. cxd5 Nexd5 20. Bd2 Rf8 21. Qd3
Be8 22. Bxa5 Kh8 23. Bxc7 Rg8 24. Qd2 Qh4 25. Bd8 Nh5 26. f4 Qg3 27. Bxg5 Rxg5
28. fxg5 Nhf4 29. exf4 Nxf4 30. Qxf4 Qxf4 31. gxh6 Qxd4+ 32. Kh1 Qxe5 33. Bh5
Qb8 34. Bxe8 Qxe8 35. Rc7 Qf8 36. Rd1 1-0